bitfinex-derivatives/quotes_BTCF0:USTF0_20251025
["timestamp","ask_amount","ask_price","bid_price","bid_amount"]
[1761429807803,0.68059082,111490.0,111480.0,0.21293326]
[1761429808199,0.68059082,111490.0,111480.0,0.05361]
[1761429810701,0.31979082,111490.0,111480.0,0.05361]
[1761429810899,0.68059082,111490.0,111480.0,0.05361]
[1761429811800,0.31979082,111490.0,111480.0,0.05361]
[1761429812006,0.68059082,111490.0,111480.0,0.05361]
[1761429812194,0.31979082,111490.0,111480.0,0.05361]
[1761429812398,0.68059082,111490.0,111480.0,0.05361]
[1761429814408,0.31979082,111490.0,111480.0,0.05361]
[1761429814708,0.68059082,111490.0,111480.0,0.05361]
[1761429816494,0.31979082,111490.0,111480.0,0.05361]
[1761429816700,0.68059082,111490.0,111480.0,0.05361]
[1761429817810,0.52126756,111490.0,111480.0,0.05361]
[1761429818011,0.68059082,111490.0,111480.0,0.05361]
[1761429820312,0.52126756,111490.0,111480.0,0.21293326]
[1761429820512,0.16046756,111490.0,111480.0,0.22653326]
[1761429820717,0.14659756,111490.0,111480.0,0.38585652]
[1761429821214,0.52035756,111490.0,111480.0,0.22653326]
[1761429825516,0.4881247,111490.0,111480.0,0.22653326]
[1761429825710,0.64744796,111490.0,111480.0,0.21293326]
[1761429825918,0.64744796,111490.0,111480.0,0.03055]
[1761429827015,0.64744796,111490.0,111480.0,0.18987326]
[1761429827212,0.64744796,111490.0,111480.0,0.03055]
[1761429827413,0.64744796,111490.0,111480.0,0.21088326]
[1761429828218,0.64744796,111490.0,111480.0,0.05156]
[1761429828718,0.4881247,111490.0,111480.0,0.05156]
[1761429832119,0.1273247,111490.0,111480.0,0.05156]
[1761429832321,0.4881247,111490.0,111480.0,0.05156]
[1761429835420,0.5204221,111490.0,111480.0,0.05156]
[1761429836718,0.5204221,111490.0,111480.0,0.20683791]
[1761429836914,0.1596221,111490.0,111480.0,0.20683791]
[1761429838427,0.1466621,111490.0,111480.0,0.20683791]
[1761429841116,0.14668676,111490.0,111480.0,0.56763791]
[1761429841625,0.14668676,111490.0,111480.0,0.20683791]
[1761429842323,0.09839092,111490.0,111480.0,0.20683791]
[1761429842622,0.04676468,111490.0,111480.0,0.56763791]
[1761429843227,0.04676468,111490.0,111480.0,0.65733071]
[1761429844123,0.06957468,111490.0,111480.0,0.65733071]
[1761429845827,0.06957468,111490.0,111480.0,0.56763791]
[1761429846426,0.06957468,111490.0,111480.0,0.20683791]
[1761429846628,0.06957468,111490.0,111480.0,0.56763791]
[1761429847528,0.04535352,111490.0,111480.0,0.56763791]
[1761429849931,0.02254352,111490.0,111480.0,0.65733071]
[1761429851233,0.04535352,111490.0,111480.0,0.65733071]
[1761429851622,0.04535352,111490.0,111480.0,0.56763791]
[1761429852527,0.02254352,111490.0,111480.0,0.65733061]
[1761429852930,0.04535352,111490.0,111480.0,0.42596]
[1761429853233,0.02254352,111490.0,111480.0,0.56763791]
[1761429858824,0.02254352,111490.0,111480.0,0.79900852]
[1761429860927,0.02254352,111490.0,111480.0,1.15980852]
[1761429861127,0.02254352,111490.0,111480.0,0.43820852]
[1761429861326,0.02254352,111490.0,111480.0,1.15980852]
[1761429862726,0.06910116,111510.0,111500.0,0.05706]
[1761429862922,0.09155468,111510.0,111500.0,0.51309791]
[1761429863831,0.09155468,111510.0,111500.0,0.51409791]
[1761429869228,0.12385208,111510.0,111500.0,0.51409791]
[1761429871934,0.12385208,111510.0,111500.0,0.87489791]
[1761429872137,0.09155468,111510.0,111500.0,0.87489791]
[1761429872338,0.06948468,111510.0,111500.0,0.87489791]
[1761429872538,0.04667468,111510.0,111500.0,0.96457461]
[1761429873141,0.04667468,111510.0,111500.0,0.87489791]
[1761429873840,0.06985468,111510.0,111500.0,0.87489791]
[1761429875643,0.09276468,111510.0,111500.0,0.87489791]
[1761429875844,0.09276468,111510.0,111500.0,0.51409791]
[1761429880745,0.09276468,111510.0,111500.0,0.87489791]
[1761429888764,0.09276468,111510.0,111500.0,0.89249464]
[1761429889761,0.12506208,111510.0,111500.0,0.53169464]
[1761429897463,0.0783874,111510.0,111500.0,0.53169464]
[1761429897662,0.12507878,111510.0,111500.0,0.53169464]
[1761429903179,0.12509111,111510.0,111500.0,0.53169464]
[1761429906077,0.27344587,111510.0,111500.0,0.53161464]
[1761429906283,0.27344587,111510.0,111500.0,0.51821464]
[1761429908482,0.63424587,111510.0,111500.0,0.35894]
[1761429908883,0.65024431,111510.0,111500.0,0.35894]
[1761429909481,0.80951895,111510.0,111500.0,0.31528]
[1761429909886,0.76122311,111510.0,111500.0,0.31528]
[1761429910489,0.80963172,111510.0,111500.0,0.31528]
[1761429912086,0.65035708,111510.0,111500.0,0.3601]
[1761429912286,0.65035708,111510.0,111500.0,0.04582]
[1761429914388,1.25035708,111510.0,111500.0,0.04582]
[1761429916188,1.25035708,111510.0,111500.0,0.20509464]
[1761429916391,1.2826041,111510.0,111500.0,0.20509464]
[1761429916797,0.6826041,111510.0,111500.0,0.20509464]
[1761429917091,0.65035708,111510.0,111500.0,0.20509464]
[1761429917287,0.6826022,111510.0,111500.0,0.023]
[1761429917492,0.65035708,111510.0,111500.0,0.001]
[1761429917690,0.65035708,111510.0,111500.0,0.023]
[1761429918085,0.65035708,111510.0,111500.0,0.04582]
[1761429919483,1.25035708,111510.0,111500.0,0.04582]
[1761429922497,1.28259859,111510.0,111500.0,0.04582]
[1761429923297,1.25035708,111510.0,111500.0,0.04582]
[1761429925398,0.88955708,111510.0,111500.0,0.04582]
[1761429925600,1.25035708,111510.0,111500.0,0.04582]
[1761429927401,1.25035708,111510.0,111500.0,0.023]
[1761429928403,1.61115708,111510.0,111500.0,0.023]
[1761429929603,1.25035708,111510.0,111500.0,0.023]
[1761429929802,0.88955708,111510.0,111500.0,0.023]
[1761429930100,1.25035708,111510.0,111500.0,0.04582]
[1761429930301,0.88955708,111510.0,111500.0,0.04582]
[1761429930703,1.25035708,111510.0,111500.0,0.04582]
[1761429933099,1.28261105,111510.0,111500.0,0.04582]
[1761429933491,1.25035708,111510.0,111500.0,0.04582]
[1761429933694,0.68261442,111510.0,111500.0,0.001]
[1761429933893,0.65035708,111510.0,111500.0,0.001]
[1761429935502,0.28955708,111510.0,111500.0,0.001]
[1761429935701,0.65035708,111510.0,111500.0,0.001]
[1761429939003,0.28955708,111510.0,111500.0,0.001]
[1761429939202,0.65035708,111510.0,111500.0,0.001]
[1761429939405,0.28955708,111510.0,111500.0,0.001]
[1761429939601,0.65035708,111510.0,111500.0,0.001]
[1761429940607,0.28955708,111510.0,111500.0,0.001]
[1761429940999,1.01115708,111510.0,111500.0,0.001]
[1761429942103,0.28955708,111510.0,111500.0,0.001]
[1761429942304,0.65039585,111510.0,111500.0,0.001]
[1761429942608,0.66634293,111510.0,111500.0,0.001]
[1761429943002,0.30554293,111510.0,111500.0,0.001]
[1761429943307,0.65039597,111510.0,111500.0,0.001]
[1761429943804,0.65039597,111510.0,111500.0,0.02201]
[1761429945210,0.28959597,111510.0,111500.0,0.02201]
[1761429945508,0.65039597,111510.0,111500.0,0.02201]
[1761429945708,0.65039597,111510.0,111500.0,0.001]
[1761429947610,0.28959597,111510.0,111500.0,0.001]
[1761429948013,0.65039597,111510.0,111500.0,0.001]
[1761429948318,0.28959597,111510.0,111500.0,0.001]
[1761429948512,0.65039597,111510.0,111500.0,0.001]
[1761429949114,0.65039597,111510.0,111500.0,0.02201]
[1761429949815,0.28959597,111510.0,111500.0,0.02201]
[1761429950113,0.65039597,111510.0,111500.0,0.02201]
[1761429950412,0.65039597,111510.0,111500.0,0.001]
[1761429950709,0.63275866,111510.0,111500.0,0.001]
[1761429951313,0.27195866,111510.0,111500.0,0.001]
[1761429951514,0.63275866,111510.0,111500.0,0.001]
[1761429952114,0.58431116,111510.0,111500.0,0.001]
[1761429952706,0.22351116,111510.0,111500.0,0.001]
[1761429953217,0.58431116,111510.0,111500.0,0.001]
[1761429953510,0.22351116,111510.0,111500.0,0.001]
[1761429953716,0.58431116,111510.0,111500.0,0.001]
[1761429953916,0.22351116,111510.0,111500.0,0.001]
[1761429954217,0.58431116,111510.0,111500.0,0.001]
[1761429954415,0.22351116,111510.0,111500.0,0.001]
[1761429954818,0.58431116,111510.0,111500.0,0.001]
[1761429955008,0.22351116,111510.0,111500.0,0.001]
[1761429955209,0.58431116,111510.0,111500.0,0.001]
[1761429955807,0.22351116,111510.0,111500.0,0.001]
[1761429956207,0.44267383,111510.0,111500.0,0.02201]
[1761429956404,0.58431116,111510.0,111500.0,0.02201]
[1761429956616,0.58431116,111510.0,111500.0,0.04489]
[1761429959823,0.13032284,111510.0,111500.0,0.04489]
[1761429960023,0.49112284,111510.0,111500.0,0.04489]
[1761429966530,0.13032284,111510.0,111500.0,0.04489]
[1761429966732,0.49112284,111510.0,111500.0,0.04489]
[1761429966932,0.13032284,111510.0,111500.0,0.04489]
[1761429967120,0.49112284,111510.0,111500.0,0.04489]
[1761429968434,0.13032284,111510.0,111500.0,0.04489]
[1761429968731,0.49112284,111510.0,111500.0,0.04489]
[1761429973326,0.13032284,111510.0,111500.0,0.04489]
[1761429973629,0.49112284,111510.0,111500.0,0.04489]
[1761429974132,0.49108606,111510.0,111500.0,0.04489]
[1761429975234,0.13028606,111510.0,111500.0,0.04489]
[1761429975423,0.49108606,111510.0,111500.0,0.04489]
[1761429976135,0.13028606,111510.0,111500.0,0.04489]
[1761429976331,0.13028606,111510.0,111500.0,0.18652733]
[1761429976332,0.16257485,111510.0,111500.0,0.18652733]
[1761429976533,0.47492584,111510.0,111500.0,0.20007733]
[1761429976840,0.47492584,111510.0,111500.0,0.18652733]
[1761429977232,0.47492584,111510.0,111500.0,0.04489]
[1761429977426,0.47492584,111510.0,111500.0,0.18652733]
[1761429977627,0.47492584,111510.0,111500.0,0.04489]
[1761429978739,0.47492584,111510.0,111500.0,0.18652733]
[1761429980536,0.49108606,111510.0,111500.0,0.18652733]
[1761429981038,0.13028606,111510.0,111500.0,0.18652733]
[1761429990545,0.49108606,111510.0,111500.0,0.18652733]
[1761429992550,0.49108606,111510.0,111500.0,0.04489]
[1761429993047,0.13028606,111510.0,111500.0,0.04489]
[1761429993346,0.49108606,111510.0,111500.0,0.04489]
[1761429994151,0.49108606,111510.0,111500.0,0.18652733]
[1761429995251,0.13028606,111510.0,111500.0,0.18652733]
[1761429995449,0.49108606,111510.0,111500.0,0.18652733]
[1761429996650,0.49108606,111510.0,111500.0,0.04489]
[1761430008748,0.13028606,111510.0,111500.0,0.04489]
[1761430010855,0.28959917,111510.0,111500.0,0.20420311]
[1761430015447,0.32189378,111510.0,111500.0,0.20420311]
[1761430015651,0.16258067,111510.0,111500.0,0.20420311]
[1761430021156,0.16258067,111510.0,111500.0,0.56500311]
[1761430022259,0.14928067,111510.0,111500.0,0.57896311]
[1761430022560,0.09274942,111510.0,111500.0,0.66863991]
[1761430023065,0.09274942,111510.0,111500.0,0.41965]
[1761430023258,0.09274942,111510.0,111500.0,0.57896311]
[1761430024565,0.09274942,111510.0,111500.0,0.57996311]
[1761430026665,0.09274942,111510.0,111500.0,0.21916311]
[1761430026862,0.09274942,111510.0,111500.0,0.57996311]
[1761430027260,0.06853705,111510.0,111500.0,0.57996311]
[1761430029966,0.06853705,111510.0,111500.0,0.66963991]
[1761430031070,0.02244705,111510.0,111500.0,0.66963991]
[1761430031764,0.04528705,111510.0,111500.0,0.66963991]
[1761430032066,0.06638705,111510.0,111500.0,0.66963991]
[1761430034771,0.06638705,111510.0,111500.0,0.30883991]
[1761430034970,0.06638705,111510.0,111500.0,0.66963991]
[1761430037869,0.02244705,111510.0,111500.0,0.66963991]
[1761430038468,0.04528705,111510.0,111500.0,0.66963991]
[1761430040368,0.02244705,111510.0,111500.0,0.66963991]
[1761430040762,0.04528705,111510.0,111500.0,1.03043991]
[1761430040968,0.02244705,111510.0,111500.0,1.03043991]
[1761430042562,0.02244705,111510.0,111500.0,0.30883991]
[1761430042757,0.02244705,111510.0,111500.0,1.03043991]
[1761430043174,0.02244705,111510.0,111500.0,1.18975302]
[1761430045368,0.02244705,111510.0,111500.0,0.46815302]
[1761430045672,0.02244705,111510.0,111500.0,1.18975302]
[1761430047573,0.02244705,111510.0,111500.0,0.46815302]
[1761430047876,0.02244705,111510.0,111500.0,1.18975302]
[1761430049774,0.02244705,111510.0,111500.0,0.46815302]
[1761430050076,0.02244705,111510.0,111500.0,1.18975302]
[1761430055075,0.07353,111520.0,111510.0,0.1477387]
[1761430055371,0.09592469,111520.0,111510.0,1.14140492]
[1761430056382,0.11765469,111520.0,111510.0,1.14140492]
[1761430056577,0.09592469,111520.0,111510.0,1.14140492]
[1761430060480,0.09592469,111520.0,111510.0,0.78060492]
[1761430060778,0.09592469,111520.0,111510.0,1.50220492]
[1761430061683,0.02239469,111520.0,111510.0,1.50220492]
[1761430061985,0.02418457,111530.0,111520.0,0.1477273]
[1761430062279,0.02418457,111530.0,111520.0,0.66784041]
[1761430062483,0.02224509,111530.0,111520.0,0.66784041]
[1761430063281,0.02324509,111530.0,111520.0,0.66784041]
[1761430063482,0.02524509,111530.0,111520.0,0.67674274]
[1761430064282,0.09876509,111530.0,111520.0,0.67674274]
[1761430067786,0.12049509,111530.0,111520.0,0.67674274]
[1761430067985,0.14274509,111530.0,111520.0,0.67674274]
[1761430072794,0.14274509,111530.0,111520.0,0.65894596]
[1761430078994,0.14274509,111530.0,111520.0,0.56928866]
[1761430079184,0.15539509,111530.0,111520.0,0.65894936]
[1761430080291,0.14274509,111530.0,111520.0,0.65894936]
[1761430081293,0.16692966,111530.0,111520.0,0.65894936]
[1761430082293,0.16692966,111530.0,111520.0,0.29814936]
[1761430082489,0.16692966,111530.0,111520.0,0.65894936]
[1761430084387,0.16692966,111530.0,111520.0,0.29814936]
[1761430084593,0.16692966,111530.0,111520.0,0.65894936]
[1761430085795,0.16692966,111530.0,111520.0,0.29814936]
[1761430085995,0.16692966,111530.0,111520.0,0.65894936]
[1761430088998,0.16692966,111530.0,111520.0,0.29814936]
[1761430089198,0.16692966,111530.0,111520.0,0.65894936]
[1761430093600,0.16692966,111530.0,111520.0,0.29814936]
[1761430093802,0.16692966,111530.0,111520.0,0.65894936]
[1761430095406,0.16692966,111530.0,111520.0,0.29814936]
[1761430095607,0.16692966,111530.0,111520.0,0.65894936]
[1761430097008,0.16692966,111530.0,111520.0,0.29814936]
[1761430097303,0.16692966,111530.0,111520.0,0.42777233]
[1761430097707,0.16692966,111530.0,111520.0,0.56928866]
[1761430103310,0.16692966,111530.0,111520.0,0.20848866]
[1761430103609,0.16692966,111530.0,111520.0,0.56928866]
[1761430105606,0.16692966,111530.0,111520.0,0.20848866]
[1761430105812,0.16692966,111530.0,111520.0,0.56928866]
[1761430106203,0.16692966,111530.0,111520.0,0.20848866]
[1761430106403,0.16692966,111530.0,111520.0,0.56928866]
[1761430106811,0.16692966,111530.0,111520.0,0.20848866]
[1761430107011,0.16692966,111530.0,111520.0,0.56928866]
[1761430108215,0.16592966,111530.0,111520.0,0.56928866]
[1761430108611,0.16392966,111530.0,111520.0,0.57128866]
[1761430121642,0.16392966,111530.0,111520.0,0.21048866]
[1761430121933,0.16392966,111530.0,111520.0,0.57128866]
[1761430126841,0.16392966,111530.0,111520.0,0.42977233]
[1761430126842,0.17741966,111530.0,111520.0,0.42977233]
[1761430127041,0.17741966,111530.0,111520.0,0.36917233]
[1761430127627,0.17741966,111530.0,111520.0,0.51068866]
[1761430128145,0.53821966,111530.0,111520.0,0.36917233]
[1761430128341,0.17741966,111530.0,111520.0,0.36917233]
[1761430128542,0.53821966,111530.0,111520.0,0.36917233]
[1761430128738,0.53821966,111530.0,111520.0,0.05501233]
[1761430128937,0.5463297,111530.0,111520.0,0.36917233]
[1761430129444,0.73629504,111530.0,111520.0,0.33858]
[1761430129942,0.68784603,111530.0,111520.0,0.36089]
[1761430130142,0.68884603,111530.0,111520.0,0.36089]
[1761430130436,0.5473297,111530.0,111520.0,0.36089]
[1761430130834,0.1865297,111530.0,111520.0,0.36089]
[1761430131034,0.5473297,111530.0,111520.0,0.36089]
[1761430131236,0.5473297,111530.0,111520.0,0.35889]
[1761430131742,0.5463297,111530.0,111520.0,0.35889]
[1761430132838,0.7056025,111530.0,111520.0,0.5181628]
[1761430133043,0.7056025,111530.0,111520.0,0.35889]
[1761430133344,0.72979116,111530.0,111520.0,0.5181628]
[1761430134346,1.32979116,111530.0,111520.0,0.5181628]
[1761430137140,0.96899116,111530.0,111520.0,0.5181628]
[1761430138941,1.32979116,111530.0,111520.0,0.5181628]
[1761430139149,0.96899116,111530.0,111520.0,0.5181628]
[1761430141849,0.80971836,111530.0,111520.0,0.5181628]
[1761430142043,0.96899116,111530.0,111520.0,0.5181628]
[1761430142851,0.80971836,111530.0,111520.0,0.5181628]
[1761430143053,0.96899116,111530.0,111520.0,0.5181628]
[1761430151652,1.32979116,111530.0,111520.0,0.5181628]
[1761430151851,0.96899116,111530.0,111520.0,0.5181628]
[1761430154064,0.9448025,111530.0,111520.0,0.5181628]
[1761430154262,0.7855297,111530.0,111520.0,0.5181628]
[1761430154462,0.9448025,111530.0,111520.0,0.5181628]
[1761430156863,0.3448025,111530.0,111520.0,0.5181628]
[1761430157164,0.39325151,111530.0,111520.0,0.5181628]
[1761430159473,0.23397871,111530.0,111520.0,0.5181628]
[1761430159662,0.39325151,111530.0,111520.0,0.5181628]
[1761430162371,0.23397871,111530.0,111520.0,0.5181628]
[1761430162571,0.39325151,111530.0,111520.0,0.5181628]
[1761430164373,0.23397871,111530.0,111520.0,0.5181628]
[1761430164574,0.99325151,111530.0,111520.0,0.5181628]
[1761430166376,0.83397871,111530.0,111520.0,0.5181628]
[1761430166570,0.99325151,111530.0,111520.0,0.5181628]
[1761430167567,0.83397871,111530.0,111520.0,0.5181628]
[1761430168878,0.83397871,111530.0,111520.0,0.5318228]
[1761430182983,0.7855297,111530.0,111520.0,0.8926228]
[1761430183592,0.83397871,111530.0,111520.0,0.8926228]
[1761430184393,0.7855297,111530.0,111520.0,0.8926228]
[1761430186995,0.7855297,111530.0,111520.0,0.5318228]
[1761430189597,0.7855297,111530.0,111520.0,0.8926228]
[1761430190793,0.1720397,111530.0,111520.0,0.9822833]
[1761430192901,0.19625284,111530.0,111520.0,0.9822833]
[1761430194705,0.19625284,111530.0,111520.0,0.964528]
[1761430195003,0.17400284,111530.0,111520.0,0.964528]
[1761430195204,0.15227284,111530.0,111520.0,0.964528]
[1761430196307,0.11998111,111530.0,111520.0,0.964528]
[1761430196501,0.14102111,111530.0,111520.0,0.964528]
[1761430199107,0.14102111,111530.0,111520.0,0.9645281]
[1761430199297,0.16345111,111530.0,111520.0,0.9645281]
[1761430200801,0.16345111,111530.0,111520.0,0.6037281]
[1761430201105,0.16345111,111530.0,111520.0,0.9645281]
[1761430201908,0.16345111,111530.0,111520.0,0.6037281]
[1761430202309,0.16345111,111530.0,111520.0,0.9645281]
[1761430202808,0.16345111,111530.0,111520.0,0.6037281]
[1761430203009,0.16345111,111530.0,111520.0,0.9645281]
[1761430204211,0.16345111,111530.0,111520.0,0.6037281]
[1761430204511,0.16345111,111530.0,111520.0,0.9645281]
[1761430204710,0.16345111,111530.0,111520.0,0.6037281]
[1761430204917,0.16345111,111530.0,111520.0,0.9645281]
[1761430205212,0.16345111,111530.0,111520.0,0.6037281]
[1761430205403,0.16345111,111530.0,111520.0,0.9645281]
[1761430205709,0.16345111,111530.0,111520.0,0.6037281]
[1761430205912,0.16345111,111530.0,111520.0,0.9645281]
[1761430207709,0.16345111,111530.0,111520.0,0.6037281]
[1761430207909,0.16345111,111530.0,111520.0,0.9645281]
[1761430208108,0.16345111,111530.0,111520.0,0.6037281]
[1761430208310,0.16345111,111530.0,111520.0,0.9645281]
[1761430211116,0.16345111,111530.0,111520.0,0.6037281]
[1761430211516,0.16345111,111530.0,111520.0,0.9645281]
[1761430212314,0.16345111,111530.0,111520.0,0.6037281]
[1761430212517,0.16345111,111530.0,111520.0,0.9645281]
[1761430214220,0.16345111,111530.0,111520.0,0.6037281]
[1761430214517,0.16345111,111530.0,111520.0,0.9645281]
[1761430214706,0.16345111,111530.0,111520.0,0.6037281]
[1761430214910,0.16345111,111530.0,111520.0,0.9645281]
[1761430215318,0.16345111,111530.0,111520.0,0.6037281]
[1761430215518,0.16345111,111530.0,111520.0,0.9645281]
[1761430215722,0.16345111,111530.0,111520.0,0.6037281]
[1761430215923,0.16345111,111530.0,111520.0,0.9645281]
[1761430216522,0.16345111,111530.0,111520.0,0.6037281]
[1761430216722,0.16345111,111530.0,111520.0,0.9645281]
[1761430216930,0.16345111,111530.0,111520.0,0.6037281]
[1761430217126,0.16345111,111530.0,111520.0,0.9645281]
[1761430217418,0.16345111,111530.0,111520.0,0.8748675]
[1761430218522,0.16345111,111530.0,111520.0,0.5140675]
[1761430218713,0.16345111,111530.0,111520.0,0.8748675]
[1761430220726,0.16345111,111530.0,111520.0,0.5140675]
[1761430220926,0.16345111,111530.0,111520.0,0.8748675]
[1761430221229,0.16345111,111530.0,111520.0,0.5140675]
[1761430221618,0.16345111,111530.0,111520.0,0.8748675]
[1761430222019,0.16345111,111530.0,111520.0,0.5140675]
[1761430222634,0.16345111,111530.0,111520.0,0.8748675]
[1761430223327,0.16345111,111530.0,111520.0,0.5140675]
[1761430223529,0.16345111,111530.0,111520.0,0.8748675]
[1761430226328,0.16344542,111530.0,111520.0,0.5140675]
[1761430226532,0.16344542,111530.0,111520.0,0.8748675]
[1761430226931,0.16344542,111530.0,111520.0,0.5140675]
[1761430227431,0.01307,111500.0,111490.0,0.40527]
[1761430227621,0.64220046,111500.0,111490.0,0.04447]
[1761430227929,0.05914,111490.0,111480.0,0.35967]
[1761430228121,0.1136748,111490.0,111480.0,0.35967]
[1761430228328,0.10555465,111490.0,111480.0,0.35967]
[1761430229524,0.24707215,111490.0,111480.0,0.04447]
[1761430229727,0.24707215,111490.0,111480.0,0.3152]
[1761430230037,0.60787215,111490.0,111480.0,0.3152]
[1761430230425,0.58369835,111490.0,111480.0,0.3162]
[1761430231124,0.58369835,111490.0,111480.0,0.3152]
[1761430231325,0.58369835,111490.0,111480.0,0.3222]
[1761430231525,0.58369835,111490.0,111480.0,0.007]
[1761430231726,0.58369835,111490.0,111480.0,0.02969]
[1761430231939,0.68141215,111490.0,111480.0,0.02769]
[1761430232838,0.68141215,111490.0,111480.0,0.04947]
[1761430233131,0.53989465,111490.0,111480.0,0.04947]
[1761430233337,0.51572085,111490.0,111480.0,0.04947]
[1761430234330,0.51606982,111490.0,111480.0,0.04947]
[1761430236035,0.15526982,111490.0,111480.0,0.04947]
[1761430236239,0.51606982,111490.0,111480.0,0.04947]
[1761430242434,0.54017212,111490.0,111480.0,0.04947]
[1761430243136,0.54017212,111490.0,111480.0,0.02769]
[1761430245128,0.54017212,111490.0,111480.0,0.04896]
[1761430246131,0.68168962,111490.0,111480.0,0.04896]
[1761430246538,0.54017212,111490.0,111480.0,0.04896]
[1761430248039,0.54017212,111490.0,111480.0,0.005]
[1761430248239,0.54017212,111490.0,111480.0,0.02693]
[1761430249041,0.54017212,111490.0,111480.0,0.005]
[1761430249938,0.54017212,111490.0,111480.0,0.02693]
[1761430251140,0.68168962,111490.0,111480.0,0.02693]
[1761430251340,0.71398357,111490.0,111480.0,0.02693]
[1761430252043,0.68168962,111490.0,111480.0,0.02693]
[1761430252542,0.57246607,111490.0,111480.0,0.0482]
[1761430252742,0.21166607,111490.0,111480.0,0.0482]
[1761430252942,0.57246607,111490.0,111480.0,0.0482]
[1761430253838,0.57246607,111490.0,111480.0,0.02693]
[1761430254330,0.54836377,111490.0,111480.0,0.02693]
[1761430254532,0.54836377,111490.0,111480.0,0.005]
[1761430254735,0.54836377,111490.0,111480.0,0.0482]
[1761430255243,0.68988127,111490.0,111480.0,0.0482]
[1761430255544,0.54836377,111490.0,111480.0,0.0482]
[1761430256140,0.54836377,111490.0,111480.0,0.02693]
[1761430256542,0.59681278,111490.0,111480.0,0.02693]
[1761430256744,0.75620296,111490.0,111480.0,0.02693]
[1761430257439,0.72390901,111490.0,111480.0,0.02693]
[1761430258546,0.72390901,111490.0,111480.0,0.02193]
[1761430259448,0.72390901,111490.0,111480.0,0.0432]
[1761430260350,0.67546,111490.0,111480.0,0.0432]
[1761430260953,0.72390039,111490.0,111480.0,0.02193]
[1761430261248,0.36310039,111490.0,111480.0,0.02193]
[1761430261545,0.72390039,111490.0,111480.0,0.02193]
[1761430262352,0.72390039,111490.0,111480.0,0.04495]
[1761430263545,0.67546,111490.0,111480.0,0.04495]
[1761430267260,0.31466,111490.0,111480.0,0.04495]
[1761430267561,0.67546,111490.0,111480.0,0.04495]
[1761430270560,0.67546,111490.0,111480.0,0.20434018]
[1761430271752,0.73985446,111490.0,111480.0,0.20434018]
[1761430272159,0.67546,111490.0,111480.0,0.20434018]
[1761430272571,0.67587336,111490.0,111480.0,0.20434018]
[1761430274862,0.74026782,111490.0,111480.0,0.20434018]
[1761430276264,0.37946782,111490.0,111480.0,0.20434018]
[1761430276465,0.67587336,111490.0,111480.0,0.20434018]
[1761430278958,0.67587336,111490.0,111480.0,0.04495]
[1761430279158,0.67587336,111490.0,111480.0,0.20434018]
[1761430279369,0.72432692,111490.0,111480.0,0.20434018]
[1761430279570,0.72432692,111490.0,111480.0,0.04495]
[1761430280464,0.36352692,111490.0,111480.0,0.04495]
[1761430281169,0.72432692,111490.0,111480.0,0.04495]
[1761430282070,0.36352692,111490.0,111480.0,0.04495]
[1761430282259,0.72432692,111490.0,111480.0,0.04495]
[1761430283572,0.72432692,111490.0,111480.0,0.02193]
[1761430283769,0.0574,111480.0,111470.0,0.51864813]
[1761430283970,0.11270543,111480.0,111470.0,0.35925795]
[1761430284271,0.27209561,111480.0,111470.0,0.51864813]
[1761430285270,0.27209561,111480.0,111470.0,0.52064813]
[1761430286672,0.34564561,111480.0,111470.0,0.52064813]
[1761430286858,0.70644561,111480.0,111470.0,0.52064813]
[1761430289073,0.70644545,111480.0,111470.0,0.52064813]
[1761430289674,0.70644545,111480.0,111470.0,0.36125795]
[1761430291570,0.70644545,111480.0,111470.0,0.52064813]
[1761430292685,0.34564545,111480.0,111470.0,0.52064813]
[1761430292869,0.39409901,111480.0,111470.0,0.52064813]
[1761430293066,0.75489901,111480.0,111470.0,0.52064813]
[1761430295576,0.75489901,111480.0,111470.0,0.36125795]
[1761430296863,0.70644545,111480.0,111470.0,0.36125795]
[1761430299383,0.34564545,111480.0,111470.0,0.36125795]
[1761430299679,0.70644545,111480.0,111470.0,0.36125795]
[1761430299873,0.34564545,111480.0,111470.0,0.36125795]
[1761430300080,0.70644545,111480.0,111470.0,0.36125795]
[1761430300877,0.34564545,111480.0,111470.0,0.36125795]
[1761430301075,0.70644545,111480.0,111470.0,0.36125795]
[1761430301781,0.34564545,111480.0,111470.0,0.36125795]
[1761430302083,0.70644545,111480.0,111470.0,0.36125795]
[1761430302287,0.34564545,111480.0,111470.0,0.36125795]
[1761430302583,0.70644545,111480.0,111470.0,0.36125795]
[1761430303586,0.70644545,111480.0,111470.0,0.52064813]
[1761430304091,0.34564545,111480.0,111470.0,0.52064813]
[1761430304394,0.70644545,111480.0,111470.0,0.52064813]
[1761430306288,0.34564545,111480.0,111470.0,0.52064813]
[1761430306489,0.70644545,111480.0,111470.0,0.52064813]
[1761430306693,0.75489901,111480.0,111470.0,0.52064813]
[1761430306893,0.70644545,111480.0,111470.0,0.52064813]
[1761430309699,0.34564545,111480.0,111470.0,0.52064813]
[1761430309891,0.70644545,111480.0,111470.0,0.52064813]
[1761430310489,0.17364527,111480.0,111470.0,0.89450813]
[1761430310696,0.16556822,111480.0,111470.0,0.89450813]
[1761430318103,0.16556822,111480.0,111470.0,0.73511795]
[1761430318406,0.16556822,111480.0,111470.0,0.89450813]
[1761430318804,0.16556822,111480.0,111470.0,0.51597811]
[1761430320498,0.16556822,111480.0,111470.0,0.87677811]
[1761430321107,0.19787047,111480.0,111470.0,0.87677811]
[1761430321402,0.19787047,111480.0,111470.0,0.51597811]
[1761430325398,0.21060047,111480.0,111470.0,0.37431795]
[1761430325598,0.21060047,111480.0,111470.0,0.36125795]
[1761430326506,0.57140047,111480.0,111470.0,0.37480795]
[1761430326909,0.54717527,111480.0,111470.0,0.37480795]
[1761430327101,0.57139185,111480.0,111470.0,0.37480795]
[1761430329702,0.21059185,111480.0,111470.0,0.37480795]
[1761430330600,0.57139185,111480.0,111470.0,0.37480795]
[1761430330800,0.21059185,111480.0,111470.0,0.37480795]
[1761430334419,0.19786185,111480.0,111470.0,0.51646811]
[1761430334606,0.19786185,111480.0,111470.0,0.87726811]
[1761430335108,0.1207696,111480.0,111470.0,0.87726811]
[1761430338320,0.1207696,111480.0,111470.0,0.51646811]
[1761430338522,0.1207696,111480.0,111470.0,0.87726811]
[1761430340821,0.0472196,111480.0,111470.0,0.87726811]
[1761430342720,0.0472196,111480.0,111470.0,0.51646811]
[1761430342916,0.0472196,111480.0,111470.0,0.87726811]
[1761430344024,0.0695396,111480.0,111470.0,0.87726811]
[1761430344734,0.0472196,111480.0,111470.0,0.87726811]
[1761430345027,0.0472196,111480.0,111470.0,0.51646811]
[1761430345222,0.0472196,111480.0,111470.0,0.87726811]
[1761430346231,0.0472196,111480.0,111470.0,0.51646811]
[1761430346424,0.0472196,111480.0,111470.0,0.87726811]